fUSD/lending_fUSD_20240422
["ID","MTS","AMOUNT","RATE_DAILY","PERIOD"]
[323164268,1713761456152,-500.0,0.00016438,2]
[323164269,1713761456161,-17846.11,0.00016438,2]
[323164270,1713761456171,-500.0,0.00016438,2]
[323164271,1713761456181,-500.0,0.00016438,2]
[323164272,1713761456190,-500.0,0.00016438,2]
[323164273,1713761456201,-500.0,0.00016438,2]
[323164274,1713761456210,-2504.74,0.00016438,2]
[323164275,1713761456220,-500.0,0.00016438,2]
[323164276,1713761456229,-1140.22,0.00016438,2]
[323164277,1713761456239,-500.0,0.00016438,2]
[323164278,1713761456248,-502.20009311,0.00016438,2]
[323164279,1713761456258,-500.0,0.00016438,2]
[323164280,1713761456267,-500.0,0.00016438,2]
[323164281,1713761456277,-413.78707582,0.00016438,2]
[323164282,1713761456286,-505.41435025,0.00016438,2]
[323164283,1713761456296,-984.72,0.00016438,2]
[323164284,1713761456305,-4394.68,0.00016438,2]
[323164285,1713761456316,-572.1,0.00016438,2]
[323164286,1713761456326,-500.0,0.00016438,2]
[323164287,1713761456335,-500.0,0.00016438,2]
[323164288,1713761456345,-500.0,0.00016438,2]
[323164289,1713761456358,-1953.16,0.00016438,2]
[323164290,1713761456368,-838.32,0.00016438,2]
[323164291,1713761456378,-500.0,0.00016438,2]
[323164292,1713761456388,-151.0,0.00016438,2]
[323164293,1713761456399,-151.0,0.00016438,2]
[323164294,1713761456408,-151.0,0.00016438,2]
[323164295,1713761456418,-500.0,0.00016438,2]
[323164296,1713761456427,-240.36018,0.00016438,2]
[323164297,1713761456438,-500.0,0.00016438,2]
[323164298,1713761456449,-153.812747,0.00016438,2]
[323164299,1713761456458,-618.65,0.00016438,2]
[323164300,1713761456468,-500.0,0.00016438,2]
[323164301,1713761456477,-500.0,0.00016438,2]
[323164302,1713761456486,-500.0,0.00016438,2]
[323164303,1713761456496,-500.0,0.00016438,2]
[323164304,1713761456505,-506.09394569,0.00016438,2]
[323164305,1713761456515,-1055.46,0.00016438,2]
[323164306,1713761456524,-4240.42,0.00016438,2]
[323164307,1713761456533,-500.0,0.00016438,2]
[323164308,1713761456543,-500.0,0.00016438,2]
[323164309,1713761456552,-500.0,0.00016438,2]
[323164310,1713761456561,-500.0,0.00016438,2]
[323164311,1713761456570,-566.63,0.00016438,2]
[323164312,1713761456580,-500.0,0.00016438,2]
[323164313,1713761456589,-801.43,0.00016438,2]
[323164314,1713761456598,-500.0,0.00016438,2]
[323164315,1713761456607,-500.0,0.00016438,2]
[323164316,1713761456616,-2833.07,0.00016438,2]
[323164317,1713761456625,-500.0,0.00016438,2]
[323164318,1713761456635,-572.49,0.00016438,2]
[323164319,1713761456644,-500.0,0.00016438,2]
[323164320,1713761456653,-151.0,0.00016438,2]
[323164321,1713761456662,-500.0,0.00016438,2]
[323164322,1713761456671,-155.624862,0.00016438,2]
[323164323,1713761456680,-681.31,0.00016438,2]
[323164324,1713761456689,-500.55400471,0.00016438,2]
[323164325,1713761456704,-500.0,0.00016438,2]
[323164326,1713761456713,-500.0,0.00016438,2]
[323164327,1713761456722,-500.0,0.00016438,2]
[323164328,1713761456732,-500.0,0.00016438,2]
[323164329,1713761456742,-500.0,0.00016438,2]
[323164330,1713761456751,-500.0,0.00016438,2]
[323164331,1713761456760,-1824.07,0.00016438,2]
[323164332,1713761456769,-500.0,0.00016438,2]
[323164333,1713761456779,-1137.67,0.00016438,2]
[323164334,1713761456788,-500.0,0.00016438,2]
[323164335,1713761456797,-500.0,0.00016438,2]
[323164336,1713761456807,-13111.04,0.00016438,2]
[323164337,1713761456816,-2549.91,0.00016438,2]
[323164338,1713761456826,-500.0,0.00016438,2]
[323164339,1713761456835,-6962.28,0.00016438,2]
[323164340,1713761456845,-500.0,0.00016438,2]
[323164341,1713761456855,-500.0,0.00016438,2]
[323164342,1713761456864,-600.19,0.00016438,2]
[323164343,1713761456873,-4015.12,0.00016438,2]
[323164344,1713761456884,-500.49602433,0.00016438,2]
[323164345,1713761456893,-500.0,0.00016438,2]
[323164346,1713761456903,-630.45,0.00016438,2]
[323164347,1713761456912,-1190.64,0.00016438,2]
[323164348,1713761456922,-6483.37,0.00016438,2]
[323164349,1713761456931,-501.02156524,0.00016438,2]
[323164350,1713761456941,-500.0,0.00016438,2]
[323164351,1713761456954,-500.0,0.00016438,2]
[323164352,1713761456963,-500.0,0.00016438,2]
[323164353,1713761456972,-500.0,0.00016438,2]
[323164354,1713761456982,-1505.24,0.00016438,2]
[323164355,1713761456992,-500.0,0.00016438,2]
[323164356,1713761457002,-197.69242828,0.00016438,2]
[323164357,1713761457011,-5033.72,0.00016438,2]
[323164358,1713761457021,-500.0,0.00016438,2]
[323164359,1713761457030,-500.0,0.00016438,2]
[323164360,1713761457039,-1477.58,0.00016438,2]
[323164361,1713761457049,-500.0,0.00016438,2]
[323164362,1713761457058,-500.0,0.00016438,2]
[323164363,1713761457068,-500.0,0.00016438,2]
[323164364,1713761457077,-500.0,0.00016438,2]
[323164365,1713761457086,-500.0,0.00016438,2]
[323164366,1713761457096,-500.0,0.00016438,2]
[323164367,1713761457106,-502.18421631,0.00016438,2]
[323164368,1713761457115,-1228.17,0.00016438,2]
[323164369,1713761457125,-500.0,0.00016438,2]
[323164370,1713761457135,-1149.77,0.00016438,2]
[323164371,1713761457145,-569.46,0.00016438,2]
[323164372,1713761457154,-502.27804332,0.00016438,2]
[323164373,1713761457164,-500.0,0.00016438,2]
[323164374,1713761457174,-27985.45,0.00016438,2]
[323164375,1713761457184,-500.0,0.00016438,2]
[323164376,1713761457194,-500.0,0.00016438,2]
[323164377,1713761457285,-2327.84,0.00016438,2]
[323164378,1713761457295,-503.48366456,0.00016438,2]
[323164379,1713761457305,-500.0,0.00016438,2]
[323164380,1713761457315,-500.0,0.00016438,2]
[323164381,1713761457324,-518.4,0.00016438,2]
[323164382,1713761457333,-500.0,0.00016438,2]
[323164383,1713761457343,-862.24,0.00016438,2]
[323164384,1713761457353,-500.0,0.00016438,2]
[323164385,1713761457364,-500.0,0.00016438,2]
[323164386,1713761457373,-500.0,0.00016438,2]
[323164387,1713761457382,-3500.33,0.00016438,2]
[323164388,1713761457391,-500.0,0.00016438,2]
[323164389,1713761457401,-642.37,0.00016438,2]
[323164390,1713761457410,-503.32881497,0.00016438,2]
[323164391,1713761457419,-500.0,0.00016438,2]
[323164392,1713761457429,-1321.16,0.00016438,2]
[323164393,1713761457438,-549.56273185,0.00016438,2]
[323164394,1713761457448,-5478.38,0.00016438,2]
[323164395,1713761457457,-13775.65,0.00016438,2]
[323164396,1713761457466,-500.0,0.00016438,2]
[323164397,1713761457476,-500.0,0.00016438,2]
[323164398,1713761457485,-500.0,0.00016438,2]
[323164399,1713761457494,-500.0,0.00016438,2]
[323164400,1713761457504,-832.79,0.00016438,2]
[323164401,1713761457513,-500.0,0.00016438,2]
[323164402,1713761457522,-564.23,0.00016438,2]
[323164403,1713761457531,-500.0,0.00016438,2]
[323164404,1713761457540,-1785.92,0.00016438,2]
[323164405,1713761457549,-500.0,0.00016438,2]
[323164406,1713761457558,-3979.31,0.00016438,2]
[323164407,1713761457567,-151.0,0.00016438,2]
[323164408,1713761457576,-3996.98,0.00016438,2]
[323164409,1713761457585,-1032.21,0.00016438,2]
[323164410,1713761457594,-151.0,0.00016438,2]
[323164411,1713761457603,-1515.67,0.00016438,2]
[323164412,1713761457613,-527.33,0.00016438,2]
[323164413,1713761457622,-151.0,0.00016438,2]
[323164414,1713761457631,-501.70084445,0.00016438,2]
[323164415,1713761457640,-500.0,0.00016438,2]
[323164416,1713761457649,-500.0,0.00016438,2]
[323164417,1713761457659,-538.07,0.00016438,2]
[323164418,1713761457668,-500.0,0.00016438,2]
[323164419,1713761457677,-151.0,0.00016438,2]
[323164420,1713761457687,-500.0,0.00016438,2]
[323164421,1713761457696,-23047.42,0.00016438,2]
[323164422,1713761457706,-151.0,0.00016438,2]
[323164423,1713761457715,-9234.59,0.00016438,2]
[323164424,1713761457725,-4135.66,0.00016438,2]
[323164425,1713761457734,-500.0,0.00016438,2]
[323164426,1713761457743,-500.0,0.00016438,2]
[323164427,1713761457753,-4267.04,0.00016438,2]
[323164428,1713761457763,-500.0,0.00016438,2]
[323164429,1713761457773,-500.0,0.00016438,2]
[323164430,1713761457783,-500.0,0.00016438,2]
[323164431,1713761457793,-645.01,0.00016438,2]
[323164432,1713761457804,-3857.84,0.00016438,2]
[323164433,1713761457813,-3704.63,0.00016438,2]
[323164434,1713761457823,-545.96,0.00016438,2]
[323164435,1713761457832,-916.83,0.00016438,2]
[323164436,1713761457843,-501.33585057,0.00016438,2]
[323164437,1713761457853,-2351.02,0.00016438,2]
[323164438,1713761457863,-500.0,0.00016438,2]
[323164439,1713761457873,-500.0,0.00016438,2]
[323164440,1713761457883,-1454.53,0.00016438,2]
[323164441,1713761457893,-500.0,0.00016438,2]
[323164442,1713761457903,-500.0,0.00016438,2]
[323164443,1713761457913,-500.0,0.00016438,2]
[323164444,1713761457922,-6033.44,0.00016438,2]
[323164445,1713761457932,-1833.94,0.00016438,2]
[323164446,1713761457942,-3461.95,0.00016438,2]
[323164447,1713761457953,-500.0,0.00016438,2]
[323164448,1713761457963,-9420.46,0.00016438,2]
[323164449,1713761457973,-4069.13,0.00016438,2]
[323164450,1713761457983,-738.75,0.00016438,2]
[323164451,1713761457993,-151.0,0.00016438,2]
[323164452,1713761458003,-154.263416,0.00016438,2]
[323164453,1713761458012,-500.0,0.00016438,2]
[323164454,1713761458023,-502.79020469,0.00016438,2]
[323164455,1713761458032,-500.0,0.00016438,2]
[323164456,1713761458042,-522.75,0.00016438,2]
[323164457,1713761458051,-3610.13,0.00016438,2]
[323164458,1713761458061,-500.0,0.00016438,2]
[323164459,1713761458071,-26124.69,0.00016438,2]
[323164460,1713761458080,-500.0,0.00016438,2]
[323164461,1713761458090,-1123.88,0.00016438,2]
[323164462,1713761458099,-599.7574677,0.00016438,2]
[323164463,1713761458109,-500.0,0.00016438,2]
[323164464,1713761458119,-500.0,0.00016438,2]
[323164465,1713761458128,-500.0,0.00016438,2]
[323164466,1713761458137,-14006.26,0.00016438,2]
[323164467,1713761458147,-500.0,0.00016438,2]
[323164468,1713761458157,-501.76743224,0.00016438,2]
[323164469,1713761458166,-1756.42,0.00016438,2]
[323164470,1713761458175,-500.0,0.00016438,2]
[323164471,1713761458185,-500.0,0.00016438,2]
[323164472,1713761458195,-500.0,0.00016438,2]
[323164473,1713761458205,-500.0,0.00016438,2]
[323164474,1713761458215,-676.03,0.00016438,2]
[323164475,1713761458225,-501.98407819,0.00016438,2]
[323164476,1713761458234,-1944.36,0.00016438,2]
[323164477,1713761458244,-500.0,0.00016438,2]
[323164478,1713761458254,-500.0,0.00016438,2]
[323164479,1713761458264,-500.0,0.00016438,2]
[323164480,1713761458273,-684.46,0.00016438,2]
[323164481,1713761458283,-500.0,0.00016438,2]
[323164482,1713761458294,-500.59760166,0.00016438,2]
[323164483,1713761458303,-6647.48,0.00016438,2]
[323164484,1713761458313,-4305.1,0.00016438,2]
[323164485,1713761458323,-564.33,0.00016438,2]
[323164486,1713761458333,-500.0,0.00016438,2]
[323164487,1713761458346,-500.0,0.00016438,2]
[323164488,1713761458359,-1098.16,0.00016438,2]
[323164489,1713761458370,-11418.83,0.00016438,2]
[323164490,1713761458380,-607.6,0.00016438,2]
[323164491,1713761458390,-151.0,0.00016438,2]
[323164492,1713761458400,-151.0,0.00016438,2]
[323164493,1713761458410,-151.0,0.00016438,2]
[323164494,1713761458420,-500.0,0.00016438,2]
[323164495,1713761458431,-672.04,0.00016438,2]
[323164496,1713761458440,-519.01832129,0.00016438,2]
[323164497,1713761458453,-531.21,0.00016438,2]
[323164498,1713761458463,-500.0,0.00016438,2]
[323164499,1713761458472,-500.0,0.00016438,2]
[323164500,1713761458482,-500.0,0.00016438,2]
[323164501,1713761458492,-500.0,0.00016438,2]
[323164502,1713761458502,-156.110215,0.00016438,2]
[323164503,1713761458512,-500.0,0.00016438,2]
[323164504,1713761458523,-500.0,0.00016438,2]
[323164505,1713761458533,-4159.86,0.00016438,2]
[323164506,1713761458543,-693.07,0.00016438,2]
[323164507,1713761458552,-520.73768539,0.00016438,2]
[323164508,1713761458562,-4929.93,0.00016438,2]
[323164509,1713761458572,-500.0,0.00016438,2]
[323164510,1713761458581,-952.52,0.00016438,2]
[323164511,1713761458591,-500.0,0.00016438,2]
[323164512,1713761458601,-501.65157344,0.00016438,2]
[323164513,1713761458611,-1431.36,0.00016438,2]
[323164514,1713761458621,-500.0,0.00016438,2]
[323164515,1713761458630,-524.27,0.00016438,2]
[323164516,1713761458640,-500.0,0.00016438,2]
[323164517,1713761458650,-1203.85,0.00016438,2]
[323164518,1713761458659,-500.0,0.00016438,2]
[323164519,1713761458668,-667.74,0.00016438,2]
[323164520,1713761458678,-514.91,0.00016438,2]
[323164521,1713761458687,-4725.58,0.00016438,2]
[323164522,1713761458698,-5536.41,0.00016438,2]
[323164523,1713761458708,-500.0,0.00016438,2]
[323164524,1713761458717,-500.0,0.00016438,2]
[323164525,1713761458727,-500.0,0.00016438,2]
[323164526,1713761458737,-500.0,0.00016438,2]
[323164527,1713761458746,-500.0,0.00016438,2]
[323164528,1713761458756,-1044.06,0.00016438,2]
[323164529,1713761458766,-500.0,0.00016438,2]
[323164530,1713761458775,-2875.13,0.00016438,2]
[323164531,1713761458785,-500.0,0.00016438,2]
[323164532,1713761458795,-6716.41,0.00016438,2]
[323164533,1713761458804,-151.0,0.00016438,2]
[323164534,1713761458814,-576.05656816,0.00016438,2]
[323164535,1713761458824,-151.0,0.00016438,2]
[323164536,1713761458834,-2120.41,0.00016438,2]
[323164537,1713761458843,-214.602242,0.00016438,2]
[323164538,1713761458853,-500.0,0.00016438,2]
[323164539,1713761458862,-500.0,0.00016438,2]
[323164540,1713761458871,-500.0,0.00016438,2]
[323164541,1713761458881,-502.58,0.00016438,2]
[323164542,1713761458891,-500.0,0.00016438,2]
[323164543,1713761458901,-618.08,0.00016438,2]
[323164544,1713761458911,-1730.04,0.00016438,2]
[323164545,1713761458920,-987.83,0.00016438,2]
[323164546,1713761458930,-500.0,0.00016438,2]
[323164547,1713761458939,-832.24,0.00016438,2]
[323164548,1713761458950,-2015.42,0.00016438,2]
[323164549,1713761458959,-28177.2,0.00016438,2]
[323164550,1713761458969,-500.0,0.00016438,2]
[323164551,1713761458980,-834.81,0.00016438,2]
[323164552,1713761458989,-1373.41,0.00016438,2]
[323164553,1713761458999,-1379.41,0.00016438,2]
[323164554,1713761459009,-500.0,0.00016438,2]
[323164555,1713761459019,-500.0,0.00016438,2]
[323164556,1713761459029,-5198.07,0.00016438,2]
[323164557,1713761459039,-2722.2,0.00016438,2]
[323164558,1713761459048,-500.0,0.00016438,2]
[323164559,1713761459058,-502.19227785,0.00016438,2]
[323164560,1713761459068,-500.0,0.00016438,2]
[323164561,1713761459078,-702.98,0.00016438,2]
[323164562,1713761459087,-4406.29,0.00016438,2]
[323164563,1713761459097,-596.69,0.00016438,2]
[323164564,1713761459107,-500.0,0.00016438,2]
[323164565,1713761459116,-500.0,0.00016438,2]
[323164566,1713761459126,-682.03,0.00016438,2]
[323164567,1713761459136,-500.0,0.00016438,2]
[323164568,1713761459146,-625.92,0.00016438,2]
[323164569,1713761459156,-13565.28,0.00016438,2]
[323164570,1713761459166,-1530.15,0.00016438,2]
[323164571,1713761459176,-500.0,0.00016438,2]
[323164572,1713761459186,-640.20474174,0.00016438,2]
[323164573,1713761459196,-500.0,0.00016438,2]
[323164574,1713761459205,-151.0,0.00016438,2]
[323164575,1713761459215,-154.775179,0.00016438,2]
[323164576,1713761459225,-963.23,0.00016438,2]
[323164577,1713761459235,-6487.51,0.00016438,2]
[323164578,1713761459245,-500.0,0.00016438,2]
[323164579,1713761459255,-500.0,0.00016438,2]
[323164580,1713761459265,-1034.11,0.00016438,2]
[323164581,1713761459275,-854.12,0.00016438,2]
[323164582,1713761459285,-500.0,0.00016438,2]
[323164583,1713761459295,-500.0,0.00016438,2]
[323164584,1713761459305,-500.0,0.00016438,2]
[323164585,1713761459314,-1820.91,0.00016438,2]
[323164586,1713761459324,-500.0,0.00016438,2]
[323164587,1713761459333,-500.0,0.00016438,2]
[323164588,1713761459343,-500.0,0.00016438,2]
[323164589,1713761459355,-3749.81,0.00016438,2]
[323164590,1713761459364,-4896.12,0.00016438,2]
[323164591,1713761459374,-2066.95,0.00016438,2]
[323164592,1713761459384,-500.0,0.00016438,2]
[323164593,1713761459394,-53449.35,0.00016438,2]
[323164594,1713761459405,-502.0085931,0.00016438,2]
[323164595,1713761459414,-1994.95,0.00016438,2]
[323164596,1713761459424,-500.0,0.00016438,2]
[323164597,1713761459434,-500.0,0.00016438,2]
[323164598,1713761459443,-730.53,0.00016438,2]
[323164599,1713761459456,-500.0,0.00016438,2]
[323164600,1713761459465,-500.0,0.00016438,2]
[323164601,1713761459474,-1787.13,0.00016438,2]
[323164602,1713761459484,-6393.39,0.00016438,2]
[323164603,1713761459493,-500.0,0.00016438,2]
[323164604,1713761459503,-500.0,0.00016438,2]
[323164605,1713761459513,-500.0,0.00016438,2]
[323164606,1713761459523,-500.0,0.00016438,2]
[323164607,1713761459533,-500.0,0.00016438,2]
[323164608,1713761459543,-4511.64,0.00016438,2]
[323164609,1713761459552,-500.0,0.00016438,2]
[323164610,1713761459562,-1497.8,0.00016438,2]
[323164611,1713761459571,-500.0,0.00016438,2]
[323164612,1713761459581,-2569.69,0.00016438,2]
[323164613,1713761459590,-500.0,0.00016438,2]
[323164614,1713761459600,-500.0,0.00016438,2]
[323164615,1713761459609,-500.0,0.00016438,2]
[323164616,1713761459619,-500.0,0.00016438,2]
[323164617,1713761459629,-670.15,0.00016438,2]
[323164618,1713761459638,-761.37,0.00016438,2]
[323164619,1713761459648,-1196.01,0.00016438,2]
[323164620,1713761459657,-12296.77,0.00016438,2]
[323164621,1713761459667,-1579.82,0.00016438,2]
[323164622,1713761459676,-500.0,0.00016438,2]
[323164623,1713761459686,-500.0,0.00016438,2]
[323164624,1713761459695,-500.0,0.00016438,2]
[323164625,1713761459706,-74529.39,0.00016438,2]
[323164626,1713761459716,-500.0,0.00016438,2]
[323164627,1713761459890,-3514.59,0.00016438,2]
[323164628,1713761459900,-595.79,0.00016438,2]
[323164629,1713761459909,-5460.32,0.00016438,2]
[323164630,1713761459918,-930.26,0.00016438,2]
[323164631,1713761459927,-500.0,0.00016438,2]
[323164632,1713761459936,-3792.62,0.00016438,2]
[323164633,1713761459946,-500.0,0.00016438,2]
[323164634,1713761459955,-3953.9,0.00016438,2]
[323164635,1713761459965,-1189.67,0.00016438,2]
[323164636,1713761459975,-3416.28,0.00016438,2]
[323164637,1713761459984,-6777.14,0.00016438,2]
[323164638,1713761459993,-500.0,0.00016438,2]
[323164639,1713761460002,-500.0,0.00016438,2]
[323164640,1713761460012,-500.0,0.00016438,2]
[323164641,1713761460021,-618.11,0.00016438,2]
[323164642,1713761460031,-500.0,0.00016438,2]
[323164643,1713761460040,-591.15,0.00016438,2]
[323164644,1713761460050,-500.0,0.00016438,2]
[323164645,1713761460059,-500.0,0.00016438,2]
[323164646,1713761460068,-500.0,0.00016438,2]
[323164647,1713761460078,-1124.36,0.00016438,2]
[323164648,1713761460088,-388.23145716,0.00016438,2]
[323164649,1713761460097,-222.184184,0.00016438,2]
[323164650,1713761460106,-5080.38,0.00016438,2]
[323164651,1713761460115,-5164.43,0.00016438,2]
[323164652,1713761460125,-500.0,0.00016438,2]
[323164653,1713761460134,-500.0,0.00016438,2]
[323164654,1713761460144,-637.44,0.00016438,2]
[323164655,1713761460153,-647.86,0.00016438,2]
[323164656,1713761460163,-3036.06867586,0.00016438,2]
[323164657,1713761463248,-1578.06772476,0.00015004,2]
[323164658,1713761464339,-3421.93227524,0.00015004,2]
[323164659,1713761464349,-1869.54415225,0.00015499,2]
[323164660,1713761464361,-236.51827636,0.00015499,2]
[323164661,1713761464370,-404.71022701,0.00015698,2]
[323164662,1713761464379,-369.99397605,0.00015983,2]
[323164663,1713761464389,-151.0,0.00016089,2]
[323164664,1713761464398,-151.0,0.00016427,2]
[323164665,1713761464407,-2987.40132414,0.00016438,2]
[323164666,1713761464416,-1001.5,0.00016438,2]
[323164667,1713761464425,-1994.98,0.00016438,2]
[323164668,1713761464435,-500.0,0.00016438,2]
[323164669,1713761464445,-500.0,0.00016438,2]
[323164670,1713761464456,-500.0,0.00016438,2]
[323164671,1713761464465,-500.0,0.00016438,2]
[323164672,1713761464474,-10417.74,0.00016438,2]
[323164673,1713761464483,-2176.98,0.00016438,2]
[323164674,1713761464492,-500.0,0.00016438,2]
[323164675,1713761464501,-6321.63,0.00016438,2]
[323164676,1713761464510,-500.0,0.00016438,2]
[323164677,1713761464519,-155.506131,0.00016438,2]
[323164678,1713761464528,-500.0,0.00016438,2]
[323164679,1713761464537,-1775.08,0.00016438,2]
[323164680,1713761464546,-151.0,0.00016438,2]
[323164681,1713761464556,-500.0,0.00016438,2]
[323164682,1713761464565,-151.0,0.00016438,2]
[323164683,1713761464574,-151.0,0.00016438,2]
[323164684,1713761464583,-500.0,0.00016438,2]
[323164685,1713761464592,-457.87845491,0.00016438,2]
[323164686,1713761464601,-151.0,0.00016438,2]
[323164687,1713761464610,-500.0,0.00016438,2]
[323164688,1713761464619,-4049.59,0.00016438,2]
[323164689,1713761464628,-500.45300958,0.00016438,2]
[323164690,1713761464637,-6436.26,0.00016438,2]
[323164691,1713761464646,-1086.04,0.00016438,2]
[323164692,1713761464655,-151.0,0.00016438,2]
[323164693,1713761464664,-151.0,0.00016438,2]
[323164694,1713761464673,-10270.78809909,0.00016438,2]
[323164695,1713761464774,-273.77749137,0.00016438,2]
[323164696,1713761464892,-1436.52759672,0.00016438,2]
[323164698,1713761981839,7503.0,0.00027111,120]
[323164699,1713762098370,1750.0,0.00012,2]
[323164700,1713762181709,500.61245399,0.00027,120]
[323164701,1713762485891,1000.0,0.000224,30]
[323164702,1713762487590,1000.0,0.000224,30]
[323164703,1713762513218,1000.0,0.000224,30]
[323164704,1713762513708,1000.0,0.000224,30]
[323164705,1713762514094,1000.0,0.000224,30]
[323164706,1713762514581,1000.0,0.000224,30]
[323164707,1713762514985,1000.0,0.000224,30]
[323164708,1713762515420,1000.0,0.000224,30]
[323164709,1713762515852,1000.0,0.000224,30]
[323164710,1713762527699,826.21355426,0.000224,30]
[323164711,1713762534724,517.16913443,0.000224,30]
[323164715,1713762631545,-404.71022701,0.00012158,2]
[323164716,1713762631556,-369.99397605,0.00012159,2]
[323164717,1713762631565,-78.23894173,0.0001216,2]
[323164718,1713762631580,-158.27933463,0.0001216,2]
[323164719,1713762631591,-160.03977109,0.00012167,2]
[323164721,1713762631601,-274.82,0.00012267,2]
[323164723,1713762631612,-6094.40786604,0.000124,2]
[323164727,1713762631640,-3087.89853201,0.000124,2]
[323164728,1713762631667,-1964.71513794,0.000124,2]
[323164729,1713762631679,-2187.48416401,0.000124,2]
[323164730,1713762631689,-155.11243898,0.00012499,2]
[323164731,1713762631698,-1825.51640891,0.00012499,2]
[323164732,1713762631708,-1226.82673284,0.000125,3]
[323164733,1713762631728,-3094.8462679,0.000125,3]
[323164734,1713762631742,-6610.7010476,0.000125,3]
[323164735,1713762631757,-4940.1,0.000125,3]
[323164736,1713762631798,-705.76,0.000125,3]
[323164737,1713762631904,-1396.70559338,0.000125,3]
[323164740,1713762631916,-657.25,0.000125,3]
[323164741,1713762631929,-623.17277901,0.000125,3]
[323164776,1713762637692,-63552.33514983,0.000125,3]
[323164777,1713762637718,-1229.7413409,0.000125,3]
[323164778,1713762637740,-3031.08389438,0.000125,3]
[323164782,1713762637924,-8099.0748233,0.000125,3]
[323164863,1713762639801,-8165.80375038,0.000125,3]
[323164864,1713762639860,-649.9975,0.000125,3]
[323164865,1713762639918,-568.37329392,0.000125,3]
[323164871,1713762642650,-880.21195323,0.000125,3]
[323164872,1713762642663,-22023.63144828,0.000125,3]
[323164890,1713762643130,-498.99000028,0.000125,3]
[323164892,1713762643248,-867.11870689,0.000125,3]
[323164912,1713762645576,-7016.38830538,0.000125,3]
[323164914,1713762645587,-2450.9403,0.000125,3]
[323164931,1713762645741,-382527.44883785,0.000125,3]
[323164936,1713762645781,-2223.8330438,0.000125,3]
[323164940,1713762645806,-634.19586164,0.000125,3]
[323164942,1713762645818,-2460.98823099,0.000125,3]
[323164951,1713762760635,1600.0,0.000147,5]
[323164952,1713762762161,3200.0,0.000148,5]
[323164953,1713762764011,4800.0,0.000149,5]
[323164954,1713762829882,261.07,0.00011526,2]
[323164955,1713762921109,-236.51827636,0.00012492,2]
[323164956,1713762921134,-369.99397605,0.00012493,2]
[323164957,1713762921156,-404.71022701,0.00012493,2]
[323164958,1713762921177,-325.67432968,0.00012494,2]
[323164959,1713762921198,-155.0,0.00012495,2]
[323164960,1713762921220,-508.1031909,0.000125,3]
[323164961,1713762921938,-2000.0,0.000125,3]
[323164962,1713762922532,-2000.0,0.000125,3]
[323164963,1713762923088,-2000.0,0.000125,3]
[323164964,1713762924300,-2000.0,0.000125,3]
[323164965,1713762932035,-155.0,0.00012491,2]
[323164966,1713762932060,-1625.0,0.000125,3]
[323164967,1713762942607,177.94,0.00010831,2]
[323164968,1713762942686,-1000.0,0.000125,3]
[323165004,1713763353081,248.01,0.00011665,2]
[323165014,1713763633384,1100.0,0.000147,5]